[Event "V. Korchnoi Memorial 2019"]
[Site "St. Petersburg"]
[Date "2019.08.18"]
[Round "5.9"]
[White "Mokshanov, Alexey"]
[Black "Lesovoi, Evgenij"]
[Result "1/2-1/2"]
[ECO "B12"]
[WhiteElo "2447"]
[BlackElo "2337"]
[Annotator "NA"]
[PlyCount "82"]
[EventDate "2019.08.13"]
[EventType "swiss"]
[EventCountry "RUS"]
[SourceTitle "playchess.com"]
[Source "ChessBase"]
[SourceQuality "1"]
[TimeControl "5400+30"]

1. e4 {[%emt 0:00:00]} c6 {[%emt 0:00:10]} 2. d4 {[%emt 0:00:00]} d5 {[%emt 0:00:06]} 3. e5 {[%emt 0:00:00]} Bf5 {[%emt 0:01:21]} 4. Nf3 {[%emt 0:00:00]} e6 {[%emt 0:00:22]} 5. Be2 {[%emt 0:00:05]} Ne7 {[%emt 0:01:11]} 6. O-O {[%emt 0:00:13]} Nd7 {[%emt 0:00:45]} 7. Nbd2 {[%emt 0:07:10]} h6 {[%emt 0:01:11]} 8. Nb3 {[%emt 0:01:17]} g5 {[%emt 0:01:17]} 9. Re1 {[%emt 0:03:15]} Bg7 {[%emt 0:04:25]} 10. a4 {[%emt 0:05:34]} Qc7 {[%emt 0:06:42]} 11. a5 $11 {[%emt 0:02:01]} f6 {[%emt 0:05:38]} 12. exf6 {[%emt 0:14:25]} Bxf6 {[%emt 0:00:35]} 13. Bd3 {[%emt 0:05:06]} O-O {[%emt 0:05:57]} 14. Bxf5 {[%emt 0:03:27]} exf5 {[%emt 0:00:17]} 15. Nc5 {[%emt 0:04:30]} Nxc5 {[%emt 0:15:11]} 16. dxc5 {[%emt 0:00:06]} Ng6 {[%emt 0:00:31]} 17. Nd4 {[%emt 0:12:43]} Qd7 {[%emt 0:03:04]} 18. Qh5 {[%emt 0:17:04]} Bxd4 {[%emt 0:07:36]} 19. Qxg6+ {[%emt 0:00:32]} Qg7 {[%emt 0:00:09]} 20. Qxg7+ {[%emt 0:00:07]} Kxg7 {[%emt 0:02:11]} 21. Be3 {[%emt 0:00:29]} Bxb2 {[%emt 0:08:21]} 22. Rab1 {[%emt 0:00:13]} Bc3 {[%emt 0:00:05]} 23. Rxb7+ {[%emt 0:00:04]} Rf7 {[%emt 0:00:04]} 24. Reb1 {[%emt 0:00:10]} f4 {[%emt 0:00:05]} 25. Bc1 {[%emt 0:02:26]} Re8 {[%emt 0:00:24]} 26. Bb2 {[%emt 0:01:34]} Bxb2 {[%emt 0:04:35]} 27. R7xb2 {[%emt 0:00:04]} Re4 {[%emt 0:00:34]} 28. Rb4 {[%emt 0:03:34]} Re2 {[%emt 0:00:55]} 29. c4 {[%emt 0:02:36]} d4 {[%emt 0:01:00]} 30. R4b2 {[%emt 0:05:52]} Re5 {[%emt 0:02:06]} 31. Rd1 {[%emt 0:00:45]} Rxc5 {[%emt 0:01:43]} 32. Rxd4 {[%emt 0:00:05]} Rxa5 {[%emt 0:00:04]} 33. f3 {[%emt 0:00:25]} Rc5 {[%emt 0:03:58]} 34. Rb8 {[%emt 0:01:12]} Ra5 {[%emt 0:04:43]} 35. h4 {[%emt 0:03:41]} gxh4 {[%emt 0:04:12]} 36. Kh2 {[%emt 0:00:10]} h3 {[%emt 0:01:36]} 37. Kxh3 {[%emt 0:00:40]} Rh5+ {[%emt 0:00:32]} 38. Kg4 {[%emt 0:00:01]} Rg5+ {[%emt 0:00:01]} 39. Kh3 {[%emt 0:00:13]} Rh5+ {[%emt 0:10:14]} 40. Kg4 {[%emt 0:00:01]} Rg5+ {[%emt 0:00:05]} 41. Kh3 {[%emt 0:00:00]} Rh5+ {[%emt 0:06:34]} 1/2-1/2

[Event "V. Korchnoi Memorial 2019"]
[Site "St. Petersburg"]
[Date "2019.08.18"]
[Round "5.10"]
[White "Samusenko, Maksim"]
[Black "Gubajdullin, Alexei"]
[Result "1-0"]
[ECO "A46"]
[WhiteElo "2438"]
[BlackElo "2331"]
[Annotator "NA"]
[PlyCount "55"]
[EventDate "2019.08.13"]
[EventType "swiss"]
[EventCountry "RUS"]
[SourceTitle "playchess.com"]
[Source "ChessBase"]
[SourceQuality "1"]
[TimeControl "5400+30"]

1. d4 {[%emt 0:00:00]} Nf6 {[%emt 0:02:46]} 2. Nf3 {[%emt 0:00:00]} d6 {[%emt 0:02:40]} 3. Nbd2 {[%emt 0:02:56]} Bf5 {[%emt 0:03:51]} 4. Nh4 {[%emt 0:06:22]} Bg4 {[%emt 0:02:01]} 5. h3 {[%emt 0:00:31]} Bd7 {[%emt 0:00:47]} 6. Nhf3 {[%emt 0:06:23]} Nc6 {[%emt 0:06:17]} 7. e4 {[%emt 0:03:51]} e5 {[%emt 0:00:07]} 8. c3 {[%emt 0:03:03]} g6 {[%emt 0:01:33]} 9. dxe5 {[%emt 0:04:57]} Nxe5 {[%emt 0:02:28]} 10. Qb3 $11 {[%emt 0:09:41]} Nxf3+ {[%emt 0:11:13]} 11. Nxf3 {[%emt 0:02:51]} Nxe4 {[%emt 0:02:50]} 12. Bc4 {[%emt 0:09:47]} Qe7 {[%emt 0:05:38]} 13. Bxf7+ {[%emt 0:00:24]} Qxf7 {[%emt 0:13:31]} 14. Qxb7 {[%emt 0:00:09]} Qc4 {[%emt 0:00:01]} 15. Qxa8+ {[%emt 0:00:46]} Ke7 {[%emt 0:29:38]} 16. Nd2 {[%emt 0:07:30]} Nxd2 {[%emt 0:01:46]} 17. Bxd2 {[%emt 0:00:07]} Bc6 {[%emt 0:03:06]} 18. Qc8 {[%emt 0:17:04]} Bxg2 {[%emt 0:02:15]} 19. Bg5+ {[%emt 0:01:29]} Kf7 {[%emt 0:00:04]} 20. Rg1 {[%emt 0:00:34]} Qe4+ {[%emt 0:05:44]} 21. Be3 {[%emt 0:01:52]} Bf3 {[%emt 0:00:09]} 22. Qxc7+ {[%emt 0:04:57]} Be7 {[%emt 0:00:13]} 23. Kd2 {[%emt 0:02:50]} Qe6 {[%emt 0:01:23]} 24. Rg3 {[%emt 0:03:27]} Bh5 {[%emt 0:01:05]} 25. Re1 {[%emt 0:01:29]} Rc8 {[%emt 0:00:28]} 26. Qb7 {[%emt 0:00:35]} Qxa2 {[%emt 0:00:52]} 27. Bg5 {[%emt 0:00:46]} Rc7 {[%emt 0:00:31]} 28. Rxe7+ {[%emt 0:00:20]} 1-0

[Event "V. Korchnoi Memorial 2019"]
[Site "St. Petersburg"]
[Date "2019.08.19"]
[Round "6.4"]
[White "Yatzenko, Anton"]
[Black "Goganov, Aleksey"]
[Result "1-0"]
[ECO "D12"]
[WhiteElo "2360"]
[BlackElo "2564"]
[Annotator "ChessBase"]
[PlyCount "89"]
[EventDate "2019.08.13"]
[EventType "swiss"]
[EventCountry "RUS"]
[SourceTitle "playchess.com"]
[Source "ChessBase"]
[SourceQuality "1"]
[TimeControl "5400+30"]

1. d4 {[%emt 0:00:00]} d5 {[%emt 0:00:00]} 2. Nf3 {[%emt 0:00:00]} Nf6 {[%emt 0:00:00]} 3. c4 {[%emt 0:00:00]} c6 {[%emt 0:01:03]} 4. e3 {[%emt 0:00:00]} Bf5 {[%emt 0:00:20]} 5. Nc3 {[%emt 0:00:00]} e6 {[%emt 0:00:04]} 6. Nh4 {[%emt 0:00:00]} Bg6 {[%emt 0:00:06]} 7. Qb3 {[%emt 0:00:15]} Qc7 {[%emt 0:01:17]} 8. Bd2 {[%emt 0:05:12]} Nbd7 {[%emt 0:01:40]} 9. Nxg6 {[%emt 0:01:45]} hxg6 {[%emt 0:00:06]} 10. g3 {[%emt 0:00:26]} Be7 {[%emt 0:02:19]} 11. Bg2 {[%emt 0:00:43]} Nb6 {[%emt 0:04:01]} 12. cxd5 {[%emt 0:00:48]} exd5 {[%emt 0:00:05]} 13. e4 {[%emt 0:06:20]} dxe4 {[%emt 0:01:37]} 14. Nxe4 {[%emt 0:02:09]} Nxe4 {[%emt 0:02:15]} 15. Bxe4 {[%emt 0:00:08]} Qd7 {[%emt 0:00:26]} 16. O-O-O {[%emt 0:01:23]} Qxd4 {[%emt 0:13:56]} 17. Rhe1 {[%emt 0:11:59]} Qc4+ {[%emt 0:10:44]} 18. Qxc4 {[%emt 0:05:43]} Nxc4 {[%emt 0:00:07]} 19. Bxc6+ {[%emt 0:21:26]} Kf8 {[%emt 0:01:40]} 20. Bxb7 {[%emt 0:00:18]} Rb8 {[%emt 0:00:05]} 21. Rxe7 {[%emt 0:00:27]} Kxe7 {[%emt 0:00:08]} 22. Bb4+ {[%emt 0:00:07]} Ke6 {[%emt 0:09:07]} 23. Bd5+ {[%emt 0:02:38]} Kf5 {[%emt 0:00:39]} 24. g4+ {[%emt 0:06:22]} Kf4 {[%emt 0:04:05]} 25. Rd4+ {[%emt 0:00:30]} Ke5 {[%emt 0:00:05]} 26. Bc3 {[%emt 0:00:25]} Nb6 {[%emt 0:01:00]} 27. f4+ {[%emt 0:08:56]} Kd6 {[%emt 0:00:07]} 28. Bxf7+ {[%emt 0:00:05]} Ke7 {[%emt 0:02:09]} 29. Bxg6 {[%emt 0:00:18]} Rbc8 {[%emt 0:03:08]} 30. Kb1 {[%emt 0:03:27]} Rxc3 {[%emt 0:01:00]} 31. bxc3 {[%emt 0:00:05]} Rxh2 {[%emt 0:00:02]} 32. Bc2 {[%emt 0:01:13]} Rg2 {[%emt 0:00:13]} 33. g5 {[%emt 0:00:17]} Rf2 {[%emt 0:00:14]} 34. Kb2 {[%emt 0:01:03]} Nd7 {[%emt 0:00:29]} 35. Ra4 {[%emt 0:03:48]} Nc5 {[%emt 0:00:03]} 36. Rxa7+ {[%emt 0:00:19]} Kd6 {[%emt 0:00:04]} 37. c4 {[%emt 0:00:40]} Rxf4 {[%emt 0:00:30]} 38. Rxg7 {[%emt 0:02:27]} Rxc4 {[%emt 0:00:12]} 39. g6 {[%emt 0:01:13]} Rg4 {[%emt 0:01:07]} 40. Ra7 {[%emt 0:02:13]} Rg3 {[%emt 0:01:37]} 41. g7 {[%emt 0:02:52]} Rg2 {[%emt 0:03:11]} 42. Kc1 {[%emt 0:01:02]} Rg1+ {[%emt 0:02:27]} 43. Kd2 {[%emt 0:00:15]} Rg2+ {[%emt 0:01:55]} 44. Ke3 {[%emt 0:00:59]} Rg3+ {[%emt 0:00:04]} 45. Kf2 {[%emt 0:00:23]} 1-0

[Event "V. Korchnoi Memorial 2019"]
[Site "St. Petersburg"]
[Date "2019.08.19"]
[Round "6.5"]
[White "Iljiushenok, Ilia"]
[Black "Samusenko, Maksim"]
[Result "1/2-1/2"]
[ECO "B01"]
[WhiteElo "2533"]
[BlackElo "2438"]
[Annotator "ChessBase"]
[PlyCount "116"]
[EventDate "2019.08.13"]
[EventType "swiss"]
[EventCountry "RUS"]
[SourceTitle "playchess.com"]
[Source "ChessBase"]
[SourceQuality "1"]
[TimeControl "5400+30"]

1. e4 {[%emt 0:00:00]} d5 {[%emt 0:00:08]} 2. exd5 {[%emt 0:00:00]} Nf6 {[%emt 0:00:15]} 3. Nf3 {[%emt 0:00:00]} Bg4 {[%emt 0:00:52]} 4. h3 {[%emt 0:00:59]} Bxf3 {[%emt 0:00:43]} 5. Qxf3 {[%emt 0:00:07]} Qxd5 {[%emt 0:00:20]} 6. Qxd5 {[%emt 0:06:16]} Nxd5 {[%emt 0:00:12]} 7. Nc3 {[%emt 0:01:40]} e6 {[%emt 0:03:32]} 8. Nxd5 {[%emt 0:15:40]} exd5 {[%emt 0:00:06]} 9. d4 {[%emt 0:00:11]} Bd6 {[%emt 0:01:46]} 10. Bd3 {[%emt 0:07:58]} O-O {[%emt 0:05:21]} 11. O-O {[%emt 0:00:14]} Re8 {[%emt 0:04:02]} 12. Be3 {[%emt 0:02:02]} Nd7 {[%emt 0:03:58]} 13. b3 {[%emt 0:01:36]} g6 {[%emt 0:09:32]} 14. c4 {[%emt 0:03:16]} dxc4 {[%emt 0:02:15]} 15. bxc4 {[%emt 0:00:21]} c5 {[%emt 0:09:53]} 16. d5 {[%emt 0:02:30]} b6 {[%emt 0:10:18]} 17. a4 {[%emt 0:03:54]} Be5 {[%emt 0:04:10]} 18. Ra2 {[%emt 0:03:55]} a5 {[%emt 0:06:43]} 19. Rb1 {[%emt 0:03:15]} Kg7 {[%emt 0:04:13]} 20. Ra3 {[%emt 0:01:50]} Bd4 {[%emt 0:04:17]} 21. Bf4 {[%emt 0:00:21]} Be5 {[%emt 0:00:20]} 22. Bd2 {[%emt 0:00:09]} h5 {[%emt 0:03:17]} 23. g3 {[%emt 0:04:03]} Rab8 {[%emt 0:06:03]} 24. Rab3 {[%emt 0:00:36]} Bd4 {[%emt 0:01:54]} 25. Kg2 {[%emt 0:01:43]} Kf8 {[%emt 0:02:00]} 26. Bf1 {[%emt 0:04:50]} Be5 {[%emt 0:02:52]} 27. Bg5 {[%emt 0:02:59]} Bd4 {[%emt 0:01:17]} 28. Bd2 {[%emt 0:09:04]} Kg7 {[%emt 0:00:28]} 29. Bd3 {[%emt 0:06:20]} Kf8 {[%emt 0:01:04]} 30. Bg5 {[%emt 0:02:43]} Kg7 {[%emt 0:00:17]} 31. Kf1 {[%emt 0:00:21]} Bf6 {[%emt 0:00:52]} 32. Bf4 {[%emt 0:00:18]} Be5 {[%emt 0:00:09]} 33. Bd2 {[%emt 0:00:02]} Bd4 {[%emt 0:01:49]} 34. Be2 {[%emt 0:00:20]} Re7 {[%emt 0:03:25]} 35. Bd3 {[%emt 0:03:17]} Ree8 {[%emt 0:00:05]} 36. Kg1 {[%emt 0:01:04]} Kf8 {[%emt 0:00:47]} 37. Bf1 {[%emt 0:01:03]} Kg7 {[%emt 0:00:14]} 38. Kg2 {[%emt 0:00:09]} Kf8 {[%emt 0:00:19]} 39. g4 {[%emt 0:02:46]} hxg4 {[%emt 0:00:24]} 40. hxg4 {[%emt 0:00:01]} Kg7 {[%emt 0:00:43]} 41. g5 {[%emt 0:00:30]} Re4 {[%emt 0:01:43]} 42. Re1 {[%emt 0:03:25]} Rxe1 {[%emt 0:00:54]} 43. Bxe1 {[%emt 0:00:01]} Re8 {[%emt 0:01:31]} 44. Bd2 {[%emt 0:00:01]} f6 {[%emt 0:00:22]} 45. gxf6+ {[%emt 0:00:17]} Kxf6 {[%emt 0:00:53]} 46. f4 {[%emt 0:00:11]} Kf7 {[%emt 0:00:31]} 47. Kg3 {[%emt 0:01:56]} Nf6 {[%emt 0:00:53]} 48. Bd3 {[%emt 0:00:04]} Be3 {[%emt 0:01:07]} 49. Bxg6+ {[%emt 0:01:56]} Kxg6 {[%emt 0:00:03]} 50. Bxe3 {[%emt 0:00:03]} Re4 {[%emt 0:00:55]} 51. Kf3 {[%emt 0:00:20]} Rxc4 {[%emt 0:00:16]} 52. Rxb6 {[%emt 0:00:04]} Rxa4 {[%emt 0:01:32]} 53. Rc6 {[%emt 0:03:02]} Ra3 {[%emt 0:00:43]} 54. Rxc5 {[%emt 0:04:20]} Rd3 {[%emt 0:00:10]} 55. d6 {[%emt 0:01:27]} Rxd6 {[%emt 0:00:27]} 56. Rxa5 {[%emt 0:00:04]} Rd5 {[%emt 0:00:07]} 57. Ra1 {[%emt 0:00:07]} Kf5 {[%emt 0:00:32]} 58. Rg1 {[%emt 0:00:14]} Ke6 {[%emt 0:00:28]} 1/2-1/2

[Event "V. Korchnoi Memorial 2019"]
[Site "St. Petersburg"]
[Date "2019.08.19"]
[Round "6.6"]
[White "Stupak, Kirill"]
[Black "Borisovsky, Dmitry"]
[Result "0-1"]
[ECO "D85"]
[WhiteElo "2561"]
[BlackElo "2326"]
[Annotator "ChessBase"]
[PlyCount "46"]
[EventDate "2019.08.13"]
[EventType "swiss"]
[EventCountry "RUS"]
[SourceTitle "playchess.com"]
[Source "ChessBase"]
[SourceQuality "1"]
[TimeControl "5400+30"]

1. d4 {[%emt 1:30:30]} Nf6 {[%emt 1:30:30]} 2. c4 {[%emt 0:00:30]} g6 {[%emt 0:00:30]} 3. Nc3 {[%emt 0:00:30]} d5 {[%emt 0:00:30]} 4. Nf3 {[%emt 0:00:30]} Bg7 {[%emt 0:00:30]} 5. cxd5 {[%emt 0:00:30]} Nxd5 {[%emt 0:00:30]} 6. Na4 {[%emt 0:00:30]} O-O {[%emt 0:00:30]} 7. e4 {[%emt 0:00:30]} Nb6 {[%emt 0:00:30]} 8. Be3 {[%emt 0:00:30]} Nc6 {[%emt 0:00:30]} 9. Nc5 {[%emt 0:00:30]} f5 {[%emt 0:00:30]} 10. Qb3+ {[%emt 0:00:30]} e6 {[%emt 0:00:30]} 11. Rd1 {[%emt 0:00:30]} f4 {[%emt 0:00:30]} 12. Bc1 {[%emt 0:00:30]} Qe7 {[%emt 0:00:30]} 13. Qc3 {[%emt 0:00:30]} e5 {[%emt 0:00:30]} 14. d5 {[%emt 0:00:30]} Nd4 {[%emt 0:00:30]} 15. Be2 {[%emt 0:00:30]} Nd7 {[%emt 0:00:30]} 16. Nb3 {[%emt 0:00:30]} Nxe2 {[%emt 0:00:30]} 17. Kxe2 {[%emt 0:00:30]} Nf6 {[%emt 0:00:30]} 18. Nfd2 {[%emt 0:00:30]} b6 {[%emt 0:00:30]} 19. f3 {[%emt 0:00:30]} Ba6+ {[%emt 0:00:30]} 20. Kf2 Nxd5 {[%emt 0:00:30]} 21. exd5 {[%emt 0:01:00]} e4 {[%emt 0:00:30]} 22. Qc6 {[%emt 0:00:30]} e3+ {[%emt 0:00:30]} 23. Kg1 {[%emt 0:00:30]} e2 {[%emt 0:00:30]} 0-1

[Event "V. Korchnoi Memorial 2019"]
[Site "St. Petersburg"]
[Date "2019.08.19"]
[Round "6.7"]
[White "Lintchevski, Daniil"]
[Black "Evdokimov, Alexey"]
[Result "1-0"]
[ECO "B07"]
[WhiteElo "2538"]
[BlackElo "2326"]
[Annotator "ChessBase"]
[PlyCount "87"]
[EventDate "2019.08.13"]
[EventType "swiss"]
[EventCountry "RUS"]
[SourceTitle "playchess.com"]
[Source "ChessBase"]
[SourceQuality "1"]
[TimeControl "5400+30"]

1. e4 {[%emt 0:00:00]} d6 {[%emt 0:00:00]} 2. d4 {[%emt 0:00:01]} Nf6 {[%emt 0:00:01]} 3. Nc3 {[%emt 0:00:28]} g6 {[%emt 0:00:11]} 4. g3 {[%emt 0:00:06]} Bg7 {[%emt 0:00:14]} 5. Bg2 {[%emt 0:00:05]} O-O {[%emt 0:00:24]} 6. Nge2 {[%emt 0:00:05]} Nbd7 {[%emt 0:00:37]} 7. h3 {[%emt 0:02:39]} e5 {[%emt 0:00:43]} 8. Be3 {[%emt 0:02:39]} c6 {[%emt 0:01:54]} 9. a4 {[%emt 0:00:10]} Qc7 {[%emt 0:01:08]} 10. O-O {[%emt 0:00:27]} b6 {[%emt 0:07:00]} 11. g4 {[%emt 0:04:30]} Ba6 {[%emt 0:07:26]} 12. Re1 {[%emt 0:00:16]} h6 {[%emt 0:13:18]} 13. Qd2 {[%emt 0:09:08]} Kh7 {[%emt 0:01:31]} 14. Ng3 {[%emt 0:00:22]} Rad8 {[%emt 0:08:07]} 15. f4 {[%emt 0:01:07]} exf4 {[%emt 0:05:15]} 16. Bxf4 {[%emt 0:01:29]} c5 {[%emt 0:03:41]} 17. d5 {[%emt 0:04:46]} Ng8 {[%emt 0:02:48]} 18. Bf1 {[%emt 0:02:24]} Bxf1 {[%emt 0:00:32]} 19. Rxf1 {[%emt 0:00:58]} Ne5 {[%emt 0:00:47]} 20. Qe2 {[%emt 0:01:11]} Qb7 {[%emt 0:02:35]} 21. Kg2 {[%emt 0:01:30]} a6 {[%emt 0:02:30]} 22. g5 {[%emt 0:02:04]} Ne7 {[%emt 0:13:26]} 23. gxh6 {[%emt 0:01:42]} Bh8 {[%emt 0:01:51]} 24. Kh2 {[%emt 0:03:57]} Rb8 {[%emt 0:01:59]} 25. Rf2 {[%emt 0:01:38]} b5 {[%emt 0:02:06]} 26. axb5 {[%emt 0:01:05]} axb5 {[%emt 0:00:04]} 27. Raf1 {[%emt 0:00:06]} Ng8 {[%emt 0:00:40]} 28. Nd1 {[%emt 0:00:54]} Qe7 {[%emt 0:01:19]} 29. Ne3 {[%emt 0:04:14]} Rb7 {[%emt 0:03:05]} 30. Rg2 {[%emt 0:02:10]} Qd7 {[%emt 0:04:56]} 31. Ngf5 {[%emt 0:04:48]} Bf6 {[%emt 0:01:45]} 32. Ng7 {[%emt 0:05:57]} Nc4 {[%emt 0:04:06]} 33. Ng4 {[%emt 0:10:42]} Bxb2 {[%emt 0:00:31]} 34. h4 {[%emt 0:00:11]} Ne5 {[%emt 0:04:57]} 35. Bxe5 {[%emt 0:01:58]} Bxe5+ {[%emt 0:00:08]} 36. Nxe5 {[%emt 0:00:04]} dxe5 {[%emt 0:00:10]} 37. Ne6 {[%emt 0:00:06]} fxe6 {[%emt 0:02:23]} 38. Rxf8 {[%emt 0:00:05]} Nxh6 {[%emt 0:01:03]} 39. Rf6 {[%emt 0:01:07]} Qg7 {[%emt 0:01:19]} 40. Rxe6 {[%emt 0:01:54]} Qf7 {[%emt 0:00:54]} 41. Rgxg6 {[%emt 0:00:36]} Qf4+ {[%emt 0:00:17]} 42. Kh3 {[%emt 0:00:48]} Rg7 {[%emt 0:00:54]} 43. Rxh6+ {[%emt 0:00:07]} Kg8 {[%emt 0:00:05]} 44. Re8+ {[%emt 0:00:41]} 1-0

[Event "V. Korchnoi Memorial 2019"]
[Site "St. Petersburg"]
[Date "2019.08.19"]
[Round "6.8"]
[White "Polschikov, Alexey"]
[Black "Lobanov, Sergei"]
[Result "0-1"]
[ECO "E01"]
[WhiteElo "2410"]
[BlackElo "2495"]
[Annotator "ChessBase"]
[PlyCount "66"]
[EventDate "2019.08.13"]
[EventType "swiss"]
[EventCountry "RUS"]
[SourceTitle "playchess.com"]
[Source "ChessBase"]
[SourceQuality "1"]
[TimeControl "5400+30"]

1. Nf3 {[%emt 0:06:23]} d5 {[%emt 0:00:00]} 2. d4 {[%emt 0:00:12]} Nf6 {[%emt 0:00:00]} 3. c4 {[%emt 0:00:19]} c6 {[%emt 0:00:00]} 4. Nc3 {[%emt 0:00:15]} e6 {[%emt 0:00:05]} 5. g3 {[%emt 0:00:21]} dxc4 {[%emt 0:00:12]} 6. Bg2 {[%emt 0:00:07]} Nbd7 {[%emt 0:00:10]} 7. O-O {[%emt 0:01:41]} b5 {[%emt 0:01:05]} 8. Ng5 {[%emt 0:06:25]} Qb6 {[%emt 0:09:56]} 9. a4 {[%emt 0:10:35]} b4 {[%emt 0:06:59]} 10. Nce4 {[%emt 0:06:55]} Nd5 {[%emt 0:05:58]} 11. a5 {[%emt 0:12:35]} Qb5 {[%emt 0:01:27]} 12. f4 {[%emt 0:00:16]} h6 {[%emt 0:01:59]} 13. Nf3 {[%emt 0:01:31]} Be7 {[%emt 0:04:36]} 14. Re1 {[%emt 0:01:34]} Ba6 {[%emt 0:05:14]} 15. Nf2 {[%emt 0:00:38]} b3 {[%emt 0:01:20]} 16. Bd2 {[%emt 0:08:34]} Nb4 {[%emt 0:00:37]} 17. Bxb4 {[%emt 0:00:02]} Bxb4 {[%emt 0:00:11]} 18. Ne4 {[%emt 0:00:03]} O-O {[%emt 0:01:01]} 19. Nc3 {[%emt 0:00:05]} Bxc3 {[%emt 0:01:41]} 20. bxc3 {[%emt 0:00:02]} Rab8 {[%emt 0:02:15]} 21. Nd2 {[%emt 0:01:36]} c5 {[%emt 0:00:50]} 22. d5 {[%emt 0:02:36]} Bb7 {[%emt 0:04:34]} 23. dxe6 {[%emt 0:00:26]} Bxg2 {[%emt 0:00:22]} 24. Kxg2 {[%emt 0:00:02]} fxe6 {[%emt 0:01:30]} 25. e4 {[%emt 0:00:36]} b2 {[%emt 0:05:15]} 26. Ra2 {[%emt 0:08:46]} Nf6 {[%emt 0:03:06]} 27. Qc2 {[%emt 0:04:16]} Rfd8 {[%emt 0:06:18]} 28. e5 {[%emt 0:08:36]} Ng4 {[%emt 0:02:10]} 29. Nb1 {[%emt 0:04:36]} Rd3 {[%emt 0:00:19]} 30. Kh3 {[%emt 0:01:21]} Qe8 {[%emt 0:04:32]} 31. Kxg4 {[%emt 0:03:17]} Qg6+ {[%emt 0:00:08]} 32. Kh4 {[%emt 0:00:20]} h5 {[%emt 0:00:22]} 33. Qe2 {[%emt 0:00:06]} Re3 {[%emt 0:00:03]} 0-1

[Event "V. Korchnoi Memorial 2019"]
[Site "St. Petersburg"]
[Date "2019.08.20"]
[Round "7.5"]
[White "Mokshanov, Alexey"]
[Black "Lintchevski, Daniil"]
[Result "1/2-1/2"]
[ECO "B31"]
[WhiteElo "2447"]
[BlackElo "2538"]
[Annotator "ChessBase"]
[PlyCount "120"]
[EventDate "2019.08.13"]
[EventType "swiss"]
[EventCountry "RUS"]
[SourceTitle "playchess.com"]
[Source "ChessBase"]
[SourceQuality "1"]
[TimeControl "5400+30"]

1. e4 {[%emt 0:00:00]} c5 {[%emt 0:00:00]} 2. Nf3 {[%emt 0:00:00]} Nc6 {[%emt 0:00:00]} 3. Bb5 {[%emt 0:00:00]} g6 {[%emt 0:00:45]} 4. Bxc6 {[%emt 0:00:09]} bxc6 {[%emt 0:00:08]} 5. O-O {[%emt 0:00:08]} Bg7 {[%emt 0:00:03]} 6. Re1 {[%emt 0:00:45]} Nf6 {[%emt 0:00:08]} 7. e5 {[%emt 0:03:37]} Nd5 {[%emt 0:00:05]} 8. c4 {[%emt 0:00:33]} Nc7 {[%emt 0:00:04]} 9. d4 {[%emt 0:00:17]} cxd4 {[%emt 0:00:09]} 10. Qxd4 {[%emt 0:00:11]} Ne6 {[%emt 0:00:06]} 11. Qh4 {[%emt 0:00:42]} d6 {[%emt 0:00:17]} 12. exd6 {[%emt 0:07:47]} Qxd6 {[%emt 0:00:08]} 13. Nc3 {[%emt 0:00:44]} h5 {[%emt 0:00:11]} 14. Bd2 {[%emt 0:08:49]} O-O {[%emt 0:00:14]} 15. Ne4 {[%emt 0:02:08]} Qc7 {[%emt 0:00:05]} 16. Bc3 {[%emt 0:03:24]} f6 {[%emt 0:00:01]} 17. Qg3 {[%emt 0:07:53]} Qxg3 {[%emt 0:01:18]} 18. hxg3 {[%emt 0:02:14]} Rd8 {[%emt 0:00:02]} 19. Rad1 {[%emt 0:13:56]} Rxd1 {[%emt 0:03:51]} 20. Rxd1 {[%emt 0:00:06]} c5 {[%emt 0:02:33]} 21. Re1 {[%emt 0:06:55]} Kf7 {[%emt 0:05:04]} 22. Nfd2 {[%emt 0:05:17]} Ba6 {[%emt 0:18:03]} 23. f3 {[%emt 0:16:03]} Bh6 {[%emt 0:07:31]} 24. b3 {[%emt 0:03:36]} Rd8 {[%emt 0:05:12]} 25. Nf1 {[%emt 0:01:56]} Bb7 {[%emt 0:02:52]} 26. Bb2 {[%emt 0:01:42]} f5 {[%emt 0:08:07]} 27. Nc3 {[%emt 0:01:23]} Bc6 {[%emt 0:01:10]} 28. Rd1 {[%emt 0:01:40]} Nd4 {[%emt 0:04:22]} 29. Ba3 {[%emt 0:02:44]} Rd7 {[%emt 0:05:11]} 30. Kf2 {[%emt 0:02:45]} Ne6 {[%emt 0:00:01]} 31. Rxd7 {[%emt 0:00:20]} Bxd7 {[%emt 0:00:00]} 32. Ne3 {[%emt 0:02:08]} Bg7 {[%emt 0:00:54]} 33. Ned5 {[%emt 0:01:07]} Nd8 {[%emt 0:04:55]} 34. Ne2 {[%emt 0:00:57]} Nb7 {[%emt 0:01:54]} 35. Ndf4 {[%emt 0:00:48]} Be5 {[%emt 0:02:09]} 36. Nd3 {[%emt 0:00:53]} Bd6 {[%emt 0:00:00]} 37. Bb2 {[%emt 0:00:42]} g5 {[%emt 0:02:01]} 38. Ne5+ {[%emt 0:02:36]} Ke6 {[%emt 0:00:01]} 39. Nxd7 Kxd7 {[%emt 0:00:01]} 40. Bc1 {[%emt 0:00:52]} g4 {[%emt 0:00:01]} 41. Nf4 {[%emt 0:00:30]} Bxf4 {[%emt 0:00:13]} 42. Bxf4 {[%emt 0:00:03]} Na5 {[%emt 0:00:39]} 43. Be3 {[%emt 0:00:29]} Kd6 {[%emt 0:00:58]} 44. Bf4+ {[%emt 0:00:00]} Kd7 {[%emt 0:02:56]} 45. Be3 {[%emt 0:00:05]} Nb7 {[%emt 0:00:06]} 46. Ke2 {[%emt 0:00:59]} Kd6 {[%emt 0:01:01]} 47. Bh6 {[%emt 0:00:59]} Nd8 {[%emt 0:00:29]} 48. Ke3 {[%emt 0:00:54]} Ne6 {[%emt 0:00:36]} 49. Bf4+ {[%emt 0:00:44]} Kc6 {[%emt 0:05:40]} 50. Be5 {[%emt 0:00:08]} a6 {[%emt 0:00:19]} 51. Kd3 {[%emt 0:01:06]} gxf3 {[%emt 0:02:31]} 52. gxf3 {[%emt 0:00:00]} f4 {[%emt 0:00:07]} 53. g4 {[%emt 0:01:12]} h4 {[%emt 0:00:20]} 54. Ke2 {[%emt 0:00:06]} Kd7 {[%emt 0:01:52]} 55. Kf2 {[%emt 0:00:18]} h3 {[%emt 0:00:01]} 56. Bb8 {[%emt 0:01:15]} Ke8 {[%emt 0:02:26]} 57. Kg1 {[%emt 0:01:08]} Nd4 {[%emt 0:00:04]} 58. Kh2 {[%emt 0:00:13]} Nxf3+ {[%emt 0:01:05]} 59. Kxh3 {[%emt 0:00:00]} e5 {[%emt 0:03:00]} 60. Kg2 {[%emt 0:00:03]} Ne1+ {[%emt 0:01:33]} 1/2-1/2